bitfinex-derivatives/quotes_BTCF0:USTF0_20240917
["timestamp","ask_amount","ask_price","bid_price","bid_amount"]
[1726559708087,0.02033513,58713.0,58712.0,0.74513197]
[1726559708594,0.02033513,58713.0,58712.0,0.6604687]
[1726559711495,0.02033513,58713.0,58712.0,0.66048544]
[1726559716207,0.02033513,58713.0,58712.0,0.66045828]
[1726559720400,0.10549913,58713.0,58712.0,0.11449328]
[1726559720592,0.10549913,58713.0,58712.0,0.08726061]
[1726559720794,0.10171913,58713.0,58712.0,0.0024]
[1726559721189,0.10171913,58713.0,58712.0,0.11464527]
[1726559721500,0.10171913,58713.0,58712.0,0.1994929]
[1726559721702,0.10171913,58713.0,58712.0,0.11464527]
[1726559722000,0.01655513,58713.0,58712.0,0.19949677]
[1726559722302,0.01655513,58713.0,58712.0,0.11464527]
[1726559723103,0.01655513,58713.0,58712.0,0.19949461]
[1726559723304,0.01655513,58713.0,58712.0,0.29981027]
[1726559725303,0.01655513,58713.0,58712.0,0.30873993]
[1726559725808,0.01655513,58713.0,58712.0,0.19649466]
[1726559726009,0.01655513,58713.0,58712.0,0.30855693]
[1726559728100,0.01655513,58713.0,58712.0,0.66935693]
[1726559729709,0.01655513,58713.0,58712.0,0.77114773]
[1726559730209,0.01655513,58713.0,58712.0,0.85631273]
[1726559730515,0.00574,58720.0,58719.0,0.17031]
[1726559730708,0.004,58727.0,58719.0,0.65841727]
[1726559731005,0.004,58730.0,58726.0,0.64848581]
[1726559731208,0.3231,58731.0,58730.0,0.085139]
[1726559732510,0.3281,58731.0,58730.0,0.086139]
[1726559733407,0.3391,58731.0,58730.0,0.15478264]
[1726559733614,0.3391,58731.0,58730.0,0.087139]
[1726559734002,0.016,58731.0,58730.0,0.087139]
[1726559735104,0.01978,58731.0,58730.0,0.087139]
[1726559736509,0.01978,58731.0,58730.0,0.13784116]
[1726559736735,0.01978,58731.0,58730.0,0.05270216]
[1726559736917,0.01978,58731.0,58730.0,0.002]
[1726559739609,0.104918,58731.0,58730.0,0.002]
[1726559744815,1.576518,58731.0,58730.0,0.002]
[1726559747822,1.572738,58731.0,58730.0,0.002]
[1726559755118,0.972738,58731.0,58730.0,0.002]
[1726559757541,0.085139,58730.0,58727.0,0.0025542]
[1726559757816,0.1,58729.0,58727.0,0.0025542]
[1726559759020,0.105,58729.0,58727.0,0.0045542]
[1726559759216,0.085142,58728.0,58727.0,0.0045542]
[1726559760524,0.096142,58728.0,58727.0,0.0045542]
[1726559761230,0.103142,58728.0,58727.0,0.0045542]
[1726559761428,0.11210072,58728.0,58727.0,0.0045542]
[1726559761936,0.11210072,58728.0,58727.0,0.0896972]
[1726559762232,0.02695872,58728.0,58727.0,0.0896972]
[1726559763142,0.11210072,58728.0,58727.0,0.0896972]
[1726559764120,0.02695872,58728.0,58727.0,0.0896972]
[1726559764430,0.018,58728.0,58727.0,0.0896972]
[1726559765423,0.018,58728.0,58727.0,0.15734084]
[1726559767732,0.018,58728.0,58727.0,0.4504972]
[1726559767927,0.018,58728.0,58727.0,0.64652067]
[1726559768130,0.018,58728.0,58727.0,0.64651231]
[1726559768335,0.018,58728.0,58727.0,0.56182957]
[1726559770029,0.018,58728.0,58727.0,0.66182957]
[1726559770336,0.018,58728.0,58727.0,0.66166236]
[1726559770728,0.018,58728.0,58727.0,0.66163528]
[1726559772835,0.018,58728.0,58727.0,0.66170434]
[1726559775335,0.018,58728.0,58727.0,0.66165215]
[1726559775537,0.018,58728.0,58727.0,0.63514783]
[1726559775835,0.118,58728.0,58727.0,0.0045542]
[1726559776033,0.203142,58728.0,58727.0,0.0045542]
[1726559777646,0.018,58728.0,58727.0,0.0896972]
[1726559778039,0.018,58728.0,58727.0,0.25743011]
[1726559779341,0.018,58728.0,58727.0,0.1896972]
[1726559779545,0.018,58728.0,58727.0,0.25742629]
[1726559779845,0.018,58728.0,58727.0,0.1896972]
[1726559780857,0.018,58728.0,58727.0,0.25742634]
[1726559781362,0.018,58728.0,58727.0,0.5504972]
[1726559782648,0.02687062,58728.0,58727.0,0.5504972]
[1726559785159,0.02687062,58728.0,58727.0,0.61821235]
[1726559785348,0.02687062,58728.0,58727.0,0.5504972]
[1726559786456,0.018,58728.0,58727.0,0.5504972]
[1726559789266,0.02178,58728.0,58727.0,0.5504972]
[1726559791951,0.02178,58728.0,58727.0,0.4504972]
[1726559793073,0.106922,58728.0,58727.0,0.3653542]
[1726559794566,0.02178,58728.0,58727.0,0.5504972]
[1726559794966,0.02178,58728.0,58727.0,0.63514783]
[1726559795162,0.02178,58728.0,58727.0,0.74647488]
[1726559796170,0.02178,58728.0,58727.0,0.74646788]
[1726559796369,0.02178,58728.0,58727.0,0.63514783]
[1726559796757,0.02178,58728.0,58727.0,0.74646395]
[1726559796965,0.02178,58728.0,58727.0,0.74645392]
[1726559797262,0.02178,58728.0,58727.0,0.66180329]
[1726559797662,0.02178,58728.0,58727.0,0.66177882]
[1726559797862,0.02178,58728.0,58727.0,0.74650456]
[1726559798064,0.02178,58728.0,58727.0,0.66177882]
[1726559801672,0.02178,58728.0,58727.0,0.56177882]
[1726559801864,0.018,58728.0,58727.0,0.56177882]
[1726559805771,0.018,58728.0,58727.0,0.56171699]
[1726559806359,0.018,58728.0,58727.0,0.5617477]
[1726559806872,0.018,58728.0,58727.0,0.4504972]
[1726559807068,0.018,58728.0,58727.0,0.56172265]
[1726559809278,0.018,58728.0,58727.0,0.56169871]
[1726559813371,0.018,58728.0,58727.0,0.4504972]
[1726559816173,0.02178,58728.0,58727.0,0.4504972]
[1726559825478,0.02178,58728.0,58727.0,0.3653542]
[1726559825782,0.106922,58728.0,58727.0,0.3653542]
[1726559827586,0.152222,58728.0,58727.0,0.3653542]
[1726559828779,0.148442,58728.0,58727.0,0.3653542]
[1726559829793,0.148442,58728.0,58727.0,0.0045542]
[1726559832186,0.233584,58728.0,58727.0,0.0045542]
[1726559832390,0.594384,58728.0,58727.0,0.0045542]
[1726559833283,1.105224,58728.0,58727.0,0.0045542]
[1726559835893,0.594384,58728.0,58727.0,0.0045542]
[1726559837785,1.105224,58728.0,58727.0,0.0045542]
[1726559837985,1.705224,58728.0,58727.0,0.0045542]
[1726559838187,0.170302,58722.0,58721.0,0.008]
[1726559838493,0.170302,58722.0,58719.0,0.05756]
[1726559838494,0.085154,58720.0,58719.0,0.05756]
[1726559838897,0.170308,58720.0,58719.0,0.05756]
[1726559840393,0.176308,58720.0,58719.0,0.05856]
[1726559841082,0.70894192,58720.0,58719.0,0.05956]
[1726559841289,1.39409592,58720.0,58719.0,0.05956]
[1726559841484,0.98458792,58720.0,58714.0,0.004]
[1726559841690,0.546361,58715.0,58711.0,0.004]
[1726559841890,0.085168,58710.0,58709.0,0.00255497]
[1726559842087,0.085568,58710.0,58709.0,0.00255497]
[1726559842396,0.085168,58710.0,58709.0,0.00255497]
[1726559843605,0.085168,58710.0,58709.0,0.08772497]
[1726559844009,0.003,58710.0,58709.0,0.10255497]
[1726559844695,0.003,58710.0,58709.0,0.18772497]
[1726559844901,0.006,58710.0,58709.0,0.55713405]
[1726559845102,0.0004,58715.0,58709.0,0.55713405]
[1726559845401,0.0004,58715.0,58714.0,0.546362]
[1726559847204,0.0094,58715.0,58714.0,0.547362]
[1726559847601,0.0124,58715.0,58714.0,0.547362]
[1726559847996,0.0124,58715.0,58714.0,0.447362]
[1726559848494,0.0174,58715.0,58714.0,0.448362]
[1726559849707,0.0174,58715.0,58714.0,0.66193028]
[1726559849904,0.0174,58715.0,58714.0,0.66193027]
[1726559850401,0.0174,58715.0,58714.0,0.66193023]
[1726559850806,0.0174,58715.0,58714.0,0.30113023]
[1726559850999,0.0174,58715.0,58714.0,0.66192833]
[1726559851200,0.0174,58715.0,58714.0,0.30112832]
[1726559851408,0.0174,58715.0,58714.0,0.66192364]
[1726559851705,0.0174,58715.0,58714.0,0.56016489]
[1726559855210,0.0174,58715.0,58714.0,0.6449413]
[1726559855597,0.0174,58715.0,58714.0,0.448362]
[1726559855802,0.0174,58715.0,58714.0,0.56015953]
[1726559863410,0.0174,58715.0,58714.0,0.19935953]
[1726559863609,0.0174,58715.0,58714.0,0.56015953]
[1726559866005,0.0174,58715.0,58714.0,0.448362]
[1726559866205,0.0174,58715.0,58714.0,0.56026928]
[1726559868222,0.0174,58715.0,58714.0,0.56032225]
[1726559870017,0.0174,58715.0,58714.0,0.56032335]
[1726559870318,0.0174,58715.0,58714.0,0.19952335]
[1726559870718,0.02118,58715.0,58714.0,0.56032335]
[1726559871322,0.004,58724.0,58714.0,0.448362]
[1726559871515,0.004,58729.0,58728.0,0.085142]
[1726559871818,0.00884399,58735.0,58728.0,0.47272224]
[1726559872114,0.049,58736.0,58734.0,0.0004]
[1726559872416,0.049,58736.0,58735.0,0.0004]
[1726559873124,0.05800664,58736.0,58735.0,0.0004]
[1726559873417,0.06300664,58736.0,58735.0,0.0004]
[1726559873611,0.06300664,58736.0,58735.0,0.0014]
[1726559873612,0.06800664,58736.0,58735.0,0.0014]
[1726559873817,0.06300664,58736.0,58735.0,0.0014]
[1726559874033,0.22800664,58736.0,58735.0,0.0024]
[1726559875118,1.18469664,58736.0,58735.0,0.0024]
[1726559875319,1.78469664,58736.0,58735.0,0.0024]
[1726559876022,1.42389664,58736.0,58735.0,0.0024]
[1726559877312,0.82389664,58736.0,58735.0,0.0024]
[1726559877619,0.31313664,58736.0,58735.0,0.0024]
[1726559882222,0.67393664,58736.0,58735.0,0.0024]
[1726559889532,0.10413664,58736.0,58735.0,0.087532]
[1726559890135,0.01900664,58736.0,58735.0,0.087532]
[1726559891721,0.01900664,58736.0,58735.0,0.0024]
[1726559891927,0.37980664,58736.0,58735.0,0.0024]
[1726559893232,0.46493664,58736.0,58735.0,0.0024]
[1726559896929,0.10413664,58736.0,58735.0,0.0024]
[1726559897130,0.46493664,58736.0,58735.0,0.0024]
[1726559897536,0.10413664,58736.0,58735.0,0.0024]
[1726559897931,0.56493664,58736.0,58735.0,0.0024]
[1726559898542,0.56871664,58736.0,58735.0,0.0024]
[1726559899441,0.20791664,58736.0,58735.0,0.0024]
[1726559899931,0.56871664,58736.0,58735.0,0.0024]
[1726559900131,0.20791664,58736.0,58735.0,0.0024]
[1726559900452,0.56871664,58736.0,58735.0,0.0024]
[1726559904538,0.67081594,58736.0,58735.0,0.0024]
[1726559905533,0.75594594,58736.0,58735.0,0.0024]
[1726559905743,0.65384664,58736.0,58735.0,0.0024]
[1726559906239,0.75603132,58736.0,58735.0,0.0024]
[1726559906640,0.65384664,58736.0,58735.0,0.0024]
[1726559907345,0.085135,58733.0,58731.0,0.05084185]
[1726559907547,0.170276,58731.0,58730.0,0.05084185]
[1726559907843,0.085139,58730.0,58729.0,0.05084185]
[1726559908051,0.185139,58730.0,58729.0,0.05084185]
[1726559909536,0.19394515,58730.0,58729.0,0.05184185]
[1726559909762,0.19994515,58730.0,58729.0,0.05284185]
[1726559913553,0.19994515,58730.0,58729.0,0.3628]
[1726559914947,0.20034515,58730.0,58729.0,0.3628]
[1726559918357,0.20034515,58730.0,58729.0,0.002]
[1726559923154,0.20034515,58730.0,58729.0,0.05287651]
[1726559923374,0.20034515,58730.0,58729.0,0.05287636]
[1726559923559,0.20034515,58730.0,58729.0,0.002]
[1726559924659,0.10034515,58730.0,58729.0,0.05287493]
[1726559924862,0.20034515,58730.0,58729.0,0.05287493]
[1726559925162,0.20412515,58730.0,58729.0,0.05287493]
[1726559925366,0.28926415,58730.0,58729.0,0.05287493]
[1726559925564,0.28926415,58730.0,58729.0,0.05287474]
[1726559925753,0.28926415,58730.0,58729.0,0.002]
[1726559927961,0.28926415,58730.0,58729.0,0.05287474]
[1726559930956,0.28926415,58730.0,58729.0,0.002]
[1726559931366,0.085143,58727.0,58725.0,0.05342565]
[1726559931684,0.67789,58726.0,58725.0,0.00255384]
[1726559932562,0.67789,58726.0,58725.0,0.00355384]
[1726559932863,0.67789,58726.0,58725.0,0.00455384]
[1726559933165,0.67789,58726.0,58725.0,0.00355384]
[1726559933365,0.67789,58726.0,58725.0,0.00455384]
[1726559934858,0.68589,58726.0,58725.0,0.00455384]
[1726559935260,0.454345,58726.0,58725.0,0.00455384]
[1726559935457,0.454345,58726.0,58725.0,0.05542565]
[1726559935653,0.454345,58726.0,58725.0,0.00455384]
[1726559936066,0.454345,58726.0,58725.0,0.08969984]
[1726559936260,0.093545,58726.0,58725.0,0.15748897]
[1726559936968,0.093545,58726.0,58725.0,0.08969984]
[1726559937263,0.093545,58726.0,58725.0,0.20659454]
[1726559937472,0.093545,58726.0,58725.0,0.18699984]
[1726559940869,0.0084,58726.0,58725.0,0.18699984]
[1726559949070,0.0084,58726.0,58725.0,0.20659456]
[1726559949675,0.0084,58726.0,58725.0,0.13879984]
[1726559951379,0.0084,58726.0,58725.0,0.20659456]
[1726559951765,0.0084,58726.0,58725.0,0.07234856]
[1726559952283,0.01218,58726.0,58725.0,0.07234856]
[1726559954771,0.11218,58726.0,58725.0,0.07234856]
[1726559955073,0.11218,58726.0,58725.0,0.00455384]
[1726559955275,0.11218,58726.0,58725.0,0.07236426]
[1726559956282,0.11218,58726.0,58725.0,0.00455384]
[1726559958683,0.11218,58726.0,58725.0,0.002]
[1726559959976,0.11218,58726.0,58725.0,0.06981166]
[1726559960178,0.11218,58726.0,58725.0,0.002]
[1726559960388,0.11218,58726.0,58725.0,0.15495597]
[1726559963387,0.11218,58726.0,58725.0,0.087146]
[1726559963891,0.11218,58726.0,58725.0,0.15497722]
[1726559964386,0.11218,58726.0,58725.0,0.087146]
[1726559964777,0.1084,58726.0,58725.0,0.087146]
[1726559979686,0.11218,58726.0,58725.0,0.087146]
[1726559991899,0.1084,58726.0,58725.0,0.087146]
[1726559995309,0.0084,58726.0,58725.0,0.087146]
[1726560001107,0.0084,58726.0,58725.0,0.1984829]
[1726560001605,0.0084,58726.0,58725.0,0.3098037]
[1726560004596,0.0084,58726.0,58725.0,0.4424843]
[1726560005325,0.0084,58726.0,58725.0,0.3311474]
[1726560005897,0.0084,58726.0,58725.0,0.6919474]
[1726560006099,0.004,58732.0,58725.0,0.6059055]
[1726560006306,0.004,58732.0,58731.0,0.085538]
[1726560006614,0.0091122,58733.0,58731.0,0.085538]
[1726560006615,0.0091122,58733.0,58731.0,0.1964457]
[1726560006805,0.0091122,58733.0,58732.0,0.21301754]
[1726560007710,0.0091122,58733.0,58732.0,0.1113077]
[1726560008409,0.0004,58733.0,58732.0,0.1113077]
[1726560008602,0.0004,58733.0,58732.0,0.1964437]
[1726560008910,0.0004,58733.0,58732.0,0.1974437]
[1726560009103,0.0004,58733.0,58732.0,0.33057007]
[1726560009304,0.004,58738.0,58734.0,0.085132]
[1726560009512,0.59821,58739.0,58737.0,0.10237795]
[1726560009813,0.59821,58739.0,58738.0,0.1109077]
[1726560010007,0.60698737,58739.0,58738.0,0.1117077]
[1726560010309,0.60698737,58739.0,58738.0,0.1109077]
[1726560010902,0.60698737,58739.0,58738.0,0.1119077]
[1726560011514,0.60698737,58739.0,58738.0,0.1970357]
[1726560011806,0.60698737,58739.0,58738.0,0.19754715]
[1726560012314,0.60698737,58739.0,58738.0,0.19751741]
[1726560013207,0.59821,58739.0,58738.0,0.19751741]
[1726560013403,0.59821,58739.0,58738.0,0.19851741]
[1726560014613,0.59821,58739.0,58738.0,0.28310844]
[1726560014805,0.59821,58739.0,58738.0,0.29200203]
[1726560015308,0.59821,58739.0,58738.0,0.207411]
[1726560016312,0.59821,58739.0,58738.0,0.2919865]
[1726560017212,0.59821,58739.0,58738.0,0.18059709]
[1726560017410,0.59821,58739.0,58738.0,0.09602159]
[1726560017716,0.59821,58739.0,58738.0,0.18059709]
[1726560017917,0.59821,58739.0,58738.0,0.09602159]
[1726560018310,0.59821,58739.0,58738.0,0.18059709]
[1726560018816,0.59821,58739.0,58738.0,0.29191837]
[1726560019216,0.59821,58739.0,58738.0,0.18059709]
[1726560020310,0.59821,58739.0,58738.0,0.09602159]
[1726560020515,0.59821,58739.0,58738.0,0.18059709]
[1726560020911,0.59821,58739.0,58738.0,0.2919007]
[1726560022722,0.59821,58739.0,58738.0,0.2073252]
[1726560022915,0.59821,58739.0,58738.0,0.09602159]
[1726560023114,0.59821,58739.0,58738.0,0.20727781]
[1726560024928,0.59821,58739.0,58738.0,1.16807781]
[1726560025225,0.18921378,58739.0,58738.0,0.74943703]
[1726560025722,0.18921378,58739.0,58738.0,0.61717781]
[1726560026321,0.18921378,58739.0,58738.0,1.72789781]
[1726560026520,0.18921378,58739.0,58738.0,1.86024205]
[1726560026719,0.18921378,58739.0,58738.0,1.85924205]
[1726560026924,0.18921378,58739.0,58738.0,1.86024205]
[1726560027518,0.12960252,58739.0,58738.0,1.94537005]
[1726560029326,0.07851003,58739.0,58738.0,1.94537005]
[1726560033417,0.08229003,58739.0,58738.0,1.94537005]
[1726560033925,0.08229003,58739.0,58738.0,0.70042205]
[1726560036225,0.02268138,58739.0,58738.0,1.81114205]
[1726560037121,0.02268138,58739.0,58738.0,1.21114205]
[1726560037419,0.02268138,58739.0,58738.0,1.81114205]
[1726560037624,0.02268138,58739.0,58738.0,1.92989475]
[1726560037926,0.02268138,58739.0,58738.0,1.81114205]
[1726560038832,0.02268138,58739.0,58738.0,1.80775328]
[1726560039029,0.02268138,58739.0,58738.0,2.07816084]
[1726560039623,0.02268138,58739.0,58738.0,2.07764142]
[1726560040029,0.02268138,58739.0,58738.0,1.95929987]
[1726560040336,0.02268138,58739.0,58738.0,2.07763949]
[1726560040527,0.02268138,58739.0,58738.0,1.9260929]
[1726560040729,0.02268138,58739.0,58738.0,2.077632]
[1726560041233,0.085099,58758.0,58739.0,0.085126]
[1726560041423,0.3608,58754.0,58753.0,0.0008]
[1726560042838,0.3608,58754.0,58753.0,0.085906]
[1726560043338,0.3608,58754.0,58753.0,0.086906]
[1726560043641,0.0481,58755.0,58754.0,0.085104]
[1726560043849,0.0481,58755.0,58754.0,0.27883298]
[1726560044030,0.0481,58755.0,58754.0,0.19434092]
[1726560044333,0.0481,58755.0,58754.0,0.19514092]
[1726560046237,0.0481,58755.0,58754.0,0.19614092]
[1726560046437,0.0481,58755.0,58754.0,0.19714092]
[1726560049237,0.0481,58755.0,58754.0,0.19710179]
[1726560050059,0.0481,58755.0,58754.0,0.19710472]
[1726560053540,0.0481,58755.0,58754.0,0.19717657]
[1726560054332,0.0481,58755.0,58754.0,0.19722034]
[1726560055340,0.0481,58755.0,58754.0,0.2986073]
[1726560056548,0.0481,58755.0,58754.0,0.29871113]
[1726560056745,0.0455,58756.0,58755.0,0.085103]
[1726560056944,0.0455,58756.0,58755.0,0.19521934]
[1726560057851,0.0455,58756.0,58755.0,0.19621934]
[1726560058552,0.00255302,58759.0,58756.0,0.085101]
[1726560058748,0.00255302,58759.0,58758.0,0.3608]
[1726560058945,0.00255302,58759.0,58758.0,0.57059581]
[1726560059150,0.00255302,58759.0,58758.0,0.65570592]
[1726560059456,0.004,58777.0,58759.0,0.085097]
[1726560059754,0.3654,58780.0,58759.0,0.085097]
[1726560059755,0.3608,58773.0,58772.0,0.1008]
[1726560061151,0.3608,58773.0,58772.0,0.10965321]
[1726560061543,0.3608,58773.0,58772.0,0.09573121]
[1726560061744,0.3608,58773.0,58772.0,0.19573121]
[1726560062062,0.3608,58773.0,58772.0,0.0028]
[1726560062355,0.3608,58773.0,58772.0,0.0704165]
[1726560062356,0.445877,58773.0,58772.0,0.0704165]
[1726560062549,0.445877,58773.0,58772.0,0.1028]
[1726560062750,0.3608,58773.0,58772.0,0.1694165]
[1726560062946,0.0921,58776.0,58774.0,0.085075]
[1726560063253,0.046,58776.0,58775.0,0.185874]
[1726560064048,0.0472,58779.0,58775.0,0.1008]
[1726560064242,0.0472,58779.0,58778.0,0.16840793]
[1726560064656,0.0472,58779.0,58778.0,0.25347793]
[1726560064850,0.0472,58779.0,58778.0,0.18587]
[1726560065464,0.0472,58779.0,58778.0,0.25347793]
[1726560065757,0.0472,58779.0,58778.0,0.18587]
[1726560066062,0.0472,58779.0,58778.0,0.18687]
[1726560066855,0.0472,58779.0,58778.0,0.18787]
[1726560068459,0.0472,58779.0,58778.0,0.23851061]
[1726560069174,0.3608,58780.0,58778.0,0.23851061]
[1726560069365,0.3608,58780.0,58779.0,0.0008]
[1726560069696,0.048,58781.0,58779.0,0.49730861]
[1726560069847,0.048,58781.0,58780.0,0.0008]
[1726560070162,0.048,58781.0,58780.0,0.05144061]
[1726560070361,0.048,58781.0,58780.0,0.0008]
[1726560071150,0.048,58781.0,58780.0,0.0018]
[1726560072360,0.0457,58785.0,58780.0,0.0018]
[1726560072361,0.0457,58785.0,58781.0,0.085064]
[1726560072549,0.0926,58785.0,58784.0,0.1008]
[1726560073861,0.10153951,58785.0,58784.0,0.1018]
[1726560074459,0.18659851,58785.0,58784.0,0.1018]
[1726560074986,0.10153951,58785.0,58784.0,0.187861]
[1726560076556,0.18659851,58785.0,58784.0,0.1028]
[1726560077168,0.0926,58785.0,58784.0,0.1028]
[1726560078353,0.0469,58785.0,58784.0,0.1028]
[1726560078559,0.085057,58787.0,58784.0,0.1028]
[1726560078765,0.3633514,58791.0,58786.0,0.0008]
[1726560078766,0.4484024,58791.0,58786.0,0.0008]
[1726560078967,0.3633514,58791.0,58790.0,0.1008]
[1726560079363,0.4484024,58791.0,58790.0,0.1008]
[1726560080160,0.4484024,58791.0,58790.0,0.0008]
[1726560080360,0.4484024,58791.0,58790.0,0.1008]
[1726560080873,0.4484024,58791.0,58790.0,0.1018]
[1726560081360,0.4484024,58791.0,58790.0,0.1028]
[1726560081867,0.4484024,58791.0,58790.0,0.0028]
[1726560084766,0.4484024,58791.0,58790.0,0.087852]
[1726560085365,0.4484024,58791.0,58790.0,0.13847358]
[1726560085674,0.4484024,58791.0,58790.0,0.05342158]
[1726560086778,0.4484024,58791.0,58790.0,0.0028]
[1726560088472,0.4484024,58791.0,58790.0,0.07030308]
[1726560089077,0.4484024,58791.0,58790.0,0.0028]
[1726560089493,0.4484024,58791.0,58790.0,0.07030308]
[1726560089873,0.0025514,58791.0,58790.0,0.07030308]
[1726560090074,0.0025514,58791.0,58790.0,0.0028]
[1726560094487,0.08505,58792.0,58790.0,0.0028]
[1726560094688,0.08505,58792.0,58791.0,0.0008]
[1726560096385,0.08505,58792.0,58791.0,0.0018]
[1726560096589,0.08505,58792.0,58791.0,0.0028]
[1726560098681,0.00900888,58795.0,58791.0,0.0028]
[1726560098881,0.085045,58795.0,58794.0,0.1]
[1726560099077,0.085045,58795.0,58794.0,0.1008]
[1726560099894,0.085045,58795.0,58794.0,0.16849891]
[1726560100095,0.085045,58795.0,58794.0,0.1008]
[1726560100997,0.085045,58795.0,58794.0,0.1018]
[1726560102002,0.085045,58795.0,58794.0,0.1028]
[1726560102707,0.085045,58795.0,58794.0,0.1018]
[1726560102914,0.085045,58795.0,58794.0,0.1028]
[1726560103202,0.085045,58795.0,58794.0,0.0028]
[1726560103408,0.085045,58795.0,58794.0,0.1028]
[1726560104007,0.17009,58795.0,58794.0,0.0028]
[1726560104211,0.085045,58795.0,58794.0,0.0028]
[1726560104510,0.230245,58795.0,58794.0,0.1028]
[1726560105313,0.3608,58796.0,58795.0,0.085045]
[1726560105504,0.3608,58796.0,58795.0,0.085845]
[1726560108014,0.3608,58796.0,58795.0,0.246845]
[1726560108217,0.3608,58796.0,58795.0,0.247845]
[1726560109616,0.3608,58796.0,58795.0,0.294345]
[1726560109825,0.3608,58796.0,58795.0,0.48647105]
[1726560112230,0.3608,58796.0,58795.0,0.4020922]
[1726560113611,0.3608,58796.0,58795.0,0.27052351]
[1726560114011,0.3608,58796.0,58795.0,0.1628]
[1726560114423,0.36458,58796.0,58795.0,0.1628]
[1726560118810,0.449624,58796.0,58795.0,0.1628]
[1726560119221,0.449624,58796.0,58795.0,0.35511505]
[1726560120521,0.449624,58796.0,58795.0,0.35515103]
[1726560120733,0.449624,58796.0,58795.0,0.24737569]
[1726560121418,0.449624,58796.0,58795.0,0.0028]
[1726560121419,0.534668,58796.0,58795.0,0.0028]
[1726560121920,0.534668,58796.0,58795.0,0.21357829]
[1726560121921,0.449624,58796.0,58795.0,0.21357829]
[1726560122118,0.449624,58796.0,58795.0,0.23049451]
[1726560122320,0.449624,58796.0,58795.0,0.1628]
[1726560123123,0.449624,58796.0,58795.0,0.23049451]
[1726560123527,0.449624,58796.0,58795.0,0.07049451]
[1726560123716,0.449624,58796.0,58795.0,0.0028]
[1726560126925,0.445844,58796.0,58795.0,0.0028]
[1726560128023,0.530888,58796.0,58795.0,0.0028]
[1726560128325,0.445844,58796.0,58795.0,0.0028]
[1726560128522,0.530888,58796.0,58795.0,0.0535829]
[1726560128825,0.445844,58796.0,58795.0,0.0028]
[1726560129021,0.530888,58796.0,58795.0,0.0028]
[1726560129422,0.445844,58796.0,58795.0,0.0028]
[1726560130433,0.530888,58796.0,58795.0,0.0535812]
[1726560131025,0.445844,58796.0,58795.0,0.0535812]
[1726560131327,0.530888,58796.0,58795.0,0.0028]
[1726560131527,0.445844,58796.0,58795.0,0.15357903]
[1726560131826,0.445844,58796.0,58795.0,0.17051641]
[1726560132430,0.445844,58796.0,58795.0,0.17049544]
[1726560133024,0.445844,58796.0,58795.0,0.1028]
[1726560136036,0.445844,58796.0,58795.0,0.187845]
[1726560136236,0.445844,58796.0,58795.0,0.0028]
[1726560137930,0.445844,58796.0,58795.0,0.1028]
[1726560139436,0.445844,58796.0,58795.0,0.0028]
[1726560139638,0.445844,58796.0,58795.0,0.1028]
[1726560141431,0.449624,58796.0,58795.0,0.1028]
[1726560143537,0.449624,58796.0,58795.0,0.187845]
[1726560146231,0.449624,58796.0,58795.0,0.1028]
[1726560148138,0.449624,58796.0,58795.0,0.0028]
[1726560148444,0.088824,58796.0,58795.0,0.08737569]
[1726560148640,0.088824,58796.0,58795.0,0.0028]
[1726560148848,0.088824,58796.0,58795.0,0.08737569]
[1726560149059,0.173868,58796.0,58795.0,0.08737569]
[1726560149257,0.534668,58796.0,58795.0,0.0028]
[1726560149548,0.534668,58796.0,58795.0,0.08737569]
[1726560150138,0.449624,58796.0,58795.0,0.19532451]
[1726560150939,0.449624,58796.0,58795.0,0.08737569]
[1726560151337,0.449624,58796.0,58795.0,0.0028]
[1726560151538,0.449624,58796.0,58795.0,0.08737569]
[1726560151950,0.449624,58796.0,58795.0,0.19531494]
[1726560152338,0.449624,58796.0,58795.0,0.08737569]
[1726560152935,0.449624,58796.0,58795.0,0.19530761]
[1726560153143,0.449624,58796.0,58795.0,0.0028]
[1726560154143,0.00255139,58798.0,58797.0,0.085042]
[1726560154339,0.00255139,58798.0,58797.0,0.29287651]
[1726560154538,0.08759239,58798.0,58797.0,0.19367651]
[1726560154737,0.08759239,58798.0,58797.0,0.29367651]
[1726560155457,0.00255139,58798.0,58797.0,0.29467651]
[1726560156045,0.00255139,58798.0,58797.0,0.39593114]
[1726560156461,0.00255139,58798.0,58797.0,0.29467651]
[1726560157042,0.00255139,58798.0,58797.0,0.29471441]
[1726560157246,0.00255139,58798.0,58797.0,0.29571441]
[1726560158555,0.00255139,58798.0,58797.0,0.21067241]
[1726560163672,0.08759239,58798.0,58797.0,0.21067241]
[1726560164654,0.08759239,58798.0,58797.0,0.11067241]
[1726560164953,0.27263339,58798.0,58797.0,0.0028]
[1726560165846,0.08759239,58798.0,58797.0,0.0028]
[1726560168166,0.17263339,58798.0,58797.0,0.0028]
[1726560168359,0.08759239,58798.0,58797.0,0.0028]
[1726560170470,0.18759239,58798.0,58797.0,0.0028]
[1726560171268,0.27263339,58798.0,58797.0,0.0028]
[1726560172667,0.18759239,58798.0,58797.0,0.0028]
[1726560173460,0.08759239,58798.0,58797.0,0.0028]
[1726560175171,0.17263339,58798.0,58797.0,0.0028]
[1726560175363,0.08759239,58798.0,58797.0,0.0028]
[1726560175566,0.17263339,58798.0,58797.0,0.0028]
[1726560177555,0.08759239,58798.0,58797.0,0.0028]
[1726560177760,0.17263339,58798.0,58797.0,0.0028]
[1726560180565,0.08759239,58798.0,58797.0,0.0028]
[1726560180770,0.17263339,58798.0,58797.0,0.0028]
[1726560181761,0.08759239,58798.0,58797.0,0.0028]
[1726560182282,0.17263339,58798.0,58797.0,0.0028]
[1726560182479,0.08759239,58798.0,58797.0,0.0028]
[1726560190574,0.08759239,58798.0,58797.0,0.07048503]
[1726560190769,0.08759239,58798.0,58797.0,0.0028]
[1726560191473,0.00255139,58798.0,58797.0,0.087842]
[1726560191698,0.00255139,58798.0,58797.0,0.19564411]
[1726560191974,0.00255139,58798.0,58797.0,0.34324411]
[1726560192371,0.00255139,58798.0,58797.0,0.11060211]
[1726560192570,0.18759239,58798.0,58797.0,0.11060211]